fUST/lending_fUST_20240320
["ID","MTS","AMOUNT","RATE_DAILY","PERIOD"]
[319714611,1710940238884,-1250.27958201,0.00031249,2]
[319714613,1710940238893,-1250.27958201,0.00031249,2]
[319714615,1710940238902,-916.37539018,0.00031249,2]
[319714804,1710940240901,-333.90419183,0.00031249,2]
[319714806,1710940240910,-1250.27958201,0.00031249,2]
[319714808,1710940240923,-1250.27958201,0.00031249,2]
[319714810,1710940240932,-1250.27958201,0.00031249,2]
[319714812,1710940240941,-1250.27958201,0.00031249,2]
[319714814,1710940240951,-225.55507621,0.00031249,2]
[319714816,1710940240962,-1024.7245058,0.00031249,2]
[319714818,1710940240971,-1250.27958201,0.00031249,2]
[319714820,1710940240980,-1250.27958201,0.00031249,2]
[319714822,1710940240988,-1250.27958201,0.00031249,2]
[319714824,1710940240997,-1250.27958201,0.00031249,2]
[319714826,1710940241007,-1250.27958201,0.00031249,2]
[319714828,1710940241016,-1250.27958201,0.00031249,2]
[319714830,1710940241026,-1250.27958201,0.00031249,2]
[319714832,1710940241036,-946.57709449,0.00031249,2]
[319715353,1710941162009,233.91790942,0.00040866,30]
[319715354,1710941230123,-154.87609912,0.00021994,2]
[319715355,1710941230143,-510.84881961,0.00026635,2]
[319715356,1710941231931,-460.58772055,0.00021993,2]
[319715357,1710941232114,-9.3997494,0.00021993,2]
[319715358,1710941237135,-65.17248469,0.00026635,2]
[319715359,1710941237156,-597.13322661,0.00027275,2]
[319715360,1710941237176,-578.38102827,0.00027276,5]
[319715361,1710941237197,-2973.8633916,0.00027376,2]
[319715362,1710941237216,-401.4646877,0.00027389,2]
[319715363,1710941237237,-300.0,0.00027494,2]
[319715364,1710941237259,-7024.0039363,0.00027495,2]
[319715365,1710941246115,-154.87609912,0.00027494,2]
[319715366,1710941246145,-9031.56021653,0.00027495,2]
[319715367,1710941258632,-245.32042398,0.00024878,2]
[319715368,1710941258864,-5.00653926,0.00024878,2]
[319715369,1710941349427,-215.25976838,0.00025141,2]
[319715370,1710941349448,-1672.72758336,0.00025394,2]
[319715371,1710941349469,-215.25976838,0.00025395,2]
[319715372,1710941349489,-8844.43584717,0.00027495,2]
[319715373,1710941349510,-874.655363,0.00027544,2]
[319715374,1710941349531,-2914.0110521,0.00027544,2]
[319715375,1710941349552,-177.030808,0.00027547,2]
[319715376,1710941349575,-2161.3311983,0.00027581,2]
[319715377,1710941349596,-6710.2547194,0.00027658,2]
[319715378,1710941349617,-166.666666,0.000277,2]
[319715379,1710941349637,-1036.13097674,0.00027742,2]
[319715427,1710941431930,-384.91989367,0.00027742,2]
[319715434,1710941431989,-0.00743587,0.00027742,2]
[319715953,1710941443023,-1600.21071532,0.00027742,2]
[319715954,1710941443033,-19.79862671,0.00028455,2]
[319716055,1710941446048,-146.86803929,0.00028455,2]
[319716056,1710941446058,-196.24196071,0.00029085,2]
[319716058,1710941573561,-304.70562123,0.00025301,2]
[319716059,1710941573587,-685.20411728,0.00025301,2]
[319716060,1710941573612,-358.76628062,0.00025302,2]
[319716061,1710941573637,-358.76628062,0.00025558,2]
[319716062,1710941573661,-453.03660871,0.00028495,2]
[319716063,1710941573685,-3436.23958139,0.00028661,2]
[319716064,1710941573709,-154.87609912,0.00028662,2]
[319716065,1710941573735,-160.68166387,0.00028663,2]
[319716066,1710941573759,-1476.73003936,0.00028663,2]
[319716067,1710941573783,-437.327681,0.00028664,2]
[319716068,1710941573808,-278.6431483,0.00029085,2]
[319716069,1710941573834,-166.666666,0.00029211,2]
[319716070,1710941573859,-177.030808,0.00029475,2]
[319716071,1710941573883,-451.6808087,0.00029586,2]
[319716072,1710941573907,-166.666666,0.00029966,2]
[319716073,1710941573932,-208.57629394,0.00029995,2]
[319716074,1710941573957,-155.29242051,0.00029995,2]
[319716075,1710941573984,-154.95351395,0.00029995,2]
[319716076,1710941574014,-669.71033152,0.00029995,2]
[319716077,1710941574038,-251.46020069,0.00029995,2]
[319716078,1710941574063,-3501.96135875,0.00029995,2]
[319716079,1710941574088,-431.78510985,0.00029995,2]
[319716080,1710941574113,-154.87609912,0.00029995,2]
[319716081,1710941574138,-179.88530837,0.00029995,2]
[319716082,1710941574163,-205.03177245,0.00029995,2]
[319716083,1710941574188,-715.3469906,0.00029996,2]
[319716084,1710941574213,-500.0,0.00029996,2]
[319716085,1710941574239,-200.0,0.00029996,2]
[319716086,1710941574264,-500.0,0.00029996,2]
[319716087,1710941574288,-2747.95761075,0.00029996,2]
[319716088,1710941574312,-617.17086444,0.00029996,2]
[319716089,1710941574337,-2747.95761075,0.00029996,2]
[319716090,1710941574361,-298.48262614,0.00029996,2]
[319716091,1710941574385,-2747.95761075,0.00029996,2]
[319716092,1710941574409,-2747.95761075,0.00029996,2]
[319716093,1710941574433,-2747.95761075,0.00029996,2]
[319716094,1710941574457,-2747.95761075,0.00029996,2]
[319716095,1710941574483,-2747.95761075,0.00029996,2]
[319716096,1710941574507,-2747.95761075,0.00029996,2]
[319716097,1710941574532,-2747.95761075,0.00029996,2]
[319716098,1710941574557,-2747.95761075,0.00029996,2]
[319716099,1710941574581,-2747.95761075,0.00029996,2]
[319716100,1710941574607,-2747.95761075,0.00029996,2]
[319716101,1710941574633,-2747.95761075,0.00029996,2]
[319716102,1710941574659,-2747.95761075,0.00029996,2]
[319716103,1710941574686,-2747.95761075,0.00029996,2]
[319716104,1710941574710,-2747.95761075,0.00029996,2]
[319716105,1710941574736,-2747.95761075,0.00029996,2]
[319716106,1710941574761,-2747.95761075,0.00029996,2]
[319716107,1710941574785,-2747.95761075,0.00029996,2]
[319716108,1710941574810,-2747.95761075,0.00029996,2]
[319716109,1710941574835,-2747.95761075,0.00029996,2]
[319716110,1710941574859,-2747.95761075,0.00029996,2]
[319716111,1710941574883,-2747.95761075,0.00029996,2]
[319716112,1710941574907,-2747.95761075,0.00029996,2]
[319716113,1710941574931,-2747.95761075,0.00029996,2]
[319716114,1710941574954,-2747.95761075,0.00029996,2]
[319716115,1710941574980,-2747.95761075,0.00029996,2]
[319716116,1710941575004,-2747.95761075,0.00029996,2]
[319716117,1710941575031,-2747.95761075,0.00029996,2]
[319716118,1710941575057,-2747.95761075,0.00029996,2]
[319716119,1710941575081,-2747.95761075,0.00029996,2]
[319716120,1710941575106,-2747.95761075,0.00029996,2]
[319716121,1710941575131,-2747.95761075,0.00029996,2]
[319716122,1710941575155,-2747.95761075,0.00029996,2]
[319716123,1710941575180,-2747.95761075,0.00029996,2]
[319716124,1710941575204,-2747.95761075,0.00029996,2]
[319716125,1710941575228,-2747.95761075,0.00029996,2]
[319716126,1710941575251,-2747.95761075,0.00029996,2]
[319716127,1710941575275,-2747.95761075,0.00029996,2]
[319716128,1710941575299,-2747.95761075,0.00029996,2]
[319716129,1710941575324,-2747.95761075,0.00029996,2]
[319716130,1710941575454,-2747.95761075,0.00029996,2]
[319716131,1710941575483,-2747.95761075,0.00029996,2]
[319716132,1710941575508,-300.0,0.00029997,2]
[319716133,1710941575534,-7429.99023236,0.0003,2]
[319716134,1710941575558,-4310.47877657,0.0003,4]
[319716135,1710941575811,382.11724394,0.000253,2]
[319716136,1710941575852,1954.57424788,0.000253,2]
[319716137,1710941575884,159.16965075,0.00029995,2]
[319716138,1710941575924,3149.88760535,0.000253,2]
[319716139,1710941590365,-6414.9132624,0.00029787,2]
[319716140,1710941590390,-1460.05940523,0.00029996,2]
[319716141,1710941590416,-1460.05940523,0.00029996,2]
[319716142,1710941590441,-1460.05940523,0.00029996,2]
[319716143,1710941590465,-1460.05940523,0.00029996,2]
[319716144,1710941590491,-1460.05940523,0.00029996,2]
[319716145,1710941590517,-1460.05940523,0.00029996,2]
[319716146,1710941590542,-1460.05940523,0.00029996,2]
[319716147,1710941590566,-1460.05940523,0.00029996,2]
[319716148,1710941590593,-1460.05940523,0.00029996,2]
[319716149,1710941590619,-1460.05940523,0.00029996,2]
[319716150,1710941590644,-1460.05940523,0.00029996,2]
[319716151,1710941590670,-1460.05940523,0.00029996,2]
[319716152,1710941590695,-1460.05940523,0.00029996,2]
[319716153,1710941590721,-1460.05940523,0.00029996,2]
[319716154,1710941590745,-1460.05940523,0.00029996,2]
[319716155,1710941590769,-1460.05940523,0.00029996,2]
[319716156,1710941590795,-1460.05940523,0.00029996,2]
[319716157,1710941590819,-1460.05940523,0.00029996,2]
[319716158,1710941590843,-1460.05940523,0.00029996,2]
[319716159,1710941590866,-1460.05940523,0.00029996,2]
[319716160,1710941590891,-1460.05940523,0.00029996,2]
[319716161,1710941590915,-1460.05940523,0.00029996,2]
[319716162,1710941590939,-1460.05940523,0.00029996,2]
[319716163,1710941590963,-1460.05940523,0.00029996,2]
[319716164,1710941590990,-1460.05940523,0.00029996,2]
[319716165,1710941591015,-1460.05940523,0.00029996,2]
[319716166,1710941591041,-1460.05940523,0.00029996,2]
[319716167,1710941591067,-1460.05940523,0.00029996,2]
[319716168,1710941591093,-1460.05940523,0.00029996,2]
[319716169,1710941591121,-1460.05940523,0.00029996,2]
[319716170,1710941591148,-1460.05940523,0.00029996,2]
[319716171,1710941591174,-1460.05940523,0.00029996,2]
[319716172,1710941591199,-1460.05940523,0.00029996,2]
[319716173,1710941591223,-1460.05940523,0.00029996,2]
[319716174,1710941591251,-1460.05940523,0.00029996,2]
[319716175,1710941591276,-1460.05940523,0.00029996,2]
[319716176,1710941591300,-1460.05940523,0.00029996,2]
[319716177,1710941591325,-1460.05940523,0.00029996,2]
[319716178,1710941591351,-1460.05940523,0.00029996,2]
[319716179,1710941591376,-1460.05940523,0.00029996,2]
[319716180,1710941591400,-1460.05940523,0.00029996,2]
[319716181,1710941591426,-1460.05940523,0.00029996,2]
[319716182,1710941591451,-1460.05940523,0.00029996,2]
[319716183,1710941591475,-1460.05940523,0.00029996,2]
[319716184,1710941591504,-1460.05940523,0.00029996,2]
[319716185,1710941591529,-1460.05940523,0.00029996,2]
[319716186,1710941591554,-1460.05940523,0.00029996,2]
[319716187,1710941591580,-1460.05940523,0.00029996,2]
[319716188,1710941591607,-1460.05940523,0.00029996,2]
[319716189,1710941591634,-1460.05940523,0.00029996,2]
[319716190,1710941591660,-1460.05940523,0.00029996,2]
[319716191,1710941591685,-1460.05940523,0.00029996,2]
[319716192,1710941591710,-1460.05940523,0.00029996,2]
[319716193,1710941591738,-1460.05940523,0.00029996,2]
[319716194,1710941591763,-428.06387339,0.0003,2]
[319716195,1710941614214,-2923.911334,0.00029722,2]
[319716196,1710941614239,-300.0,0.00029995,2]
[319716197,1710941614269,-627.70075285,0.00029996,2]
[319716198,1710941614295,-627.70075285,0.00029996,2]
[319716199,1710941614320,-627.70075285,0.00029996,2]
[319716200,1710941614346,-627.70075285,0.00029996,2]
[319716201,1710941614371,-627.70075285,0.00029996,2]
[319716202,1710941614397,-627.70075285,0.00029996,2]
[319716203,1710941614423,-627.70075285,0.00029996,2]
[319716204,1710941614450,-627.70075285,0.00029996,2]
[319716205,1710941614476,-627.70075285,0.00029996,2]
[319716206,1710941614506,-627.70075285,0.00029996,2]
[319716207,1710941614530,-627.70075285,0.00029996,2]
[319716208,1710941614558,-627.70075285,0.00029996,2]
[319716209,1710941614586,-627.70075285,0.00029996,2]
[319716210,1710941614612,-627.70075285,0.00029996,2]
[319716211,1710941614638,-627.70075285,0.00029996,2]
[319716212,1710941614665,-627.70075285,0.00029996,2]
[319716213,1710941614691,-627.70075285,0.00029996,2]
[319716214,1710941614718,-627.70075285,0.00029996,2]
[319716215,1710941614749,-627.70075285,0.00029996,2]
[319716216,1710941614774,-627.70075285,0.00029996,2]
[319716217,1710941614798,-627.70075285,0.00029996,2]
[319716218,1710941614823,-627.70075285,0.00029996,2]
[319716219,1710941614847,-627.70075285,0.00029996,2]
[319716220,1710941614872,-627.70075285,0.00029996,2]
[319716221,1710941614896,-627.70075285,0.00029996,2]
[319716222,1710941614921,-627.70075285,0.00029996,2]
[319716223,1710941614946,-627.70075285,0.00029996,2]
[319716224,1710941614971,-627.70075285,0.00029996,2]
[319716225,1710941614999,-627.70075285,0.00029996,2]
[319716226,1710941615027,-627.70075285,0.00029996,2]
[319716227,1710941615053,-627.70075285,0.00029996,2]
[319716228,1710941615080,-627.70075285,0.00029996,2]
[319716229,1710941615107,-627.70075285,0.00029996,2]
[319716230,1710941615134,-627.70075285,0.00029996,2]
[319716231,1710941615162,-627.70075285,0.00029996,2]
[319716232,1710941615190,-627.70075285,0.00029996,2]
[319716233,1710941615218,-627.70075285,0.00029996,2]
[319716234,1710941615248,-627.70075285,0.00029996,2]
[319716235,1710941615276,-627.70075285,0.00029996,2]
[319716236,1710941615302,-627.70075285,0.00029996,2]
[319716237,1710941615327,-627.70075285,0.00029996,2]
[319716238,1710941615351,-627.70075285,0.00029996,2]
[319716239,1710941615377,-500.0,0.00029996,2]
[319716240,1710941615402,-500.0,0.00029996,2]
[319716241,1710941615429,-500.0,0.00029996,2]
[319716242,1710941615455,-500.0,0.00029996,2]
[319716243,1710941615480,-500.0,0.00029996,2]
[319716244,1710941615510,-500.0,0.00029996,2]
[319716245,1710941615535,-500.0,0.00029996,2]
[319716246,1710941615561,-500.0,0.00029996,2]
[319716247,1710941615586,-242.00053837,0.00029996,2]
[319716248,1710941615736,-500.0,0.00029996,2]
[319716249,1710941615766,-500.0,0.00029996,2]
[319716250,1710941615791,-500.0,0.00029996,2]
[319716251,1710941615817,-500.0,0.00029996,2]
[319716252,1710941615846,-500.0,0.00029996,2]
[319716253,1710941615873,-500.0,0.00029996,2]
[319716254,1710941615900,-500.0,0.00029996,2]
[319716255,1710941615928,-500.0,0.00029996,2]
[319716256,1710941615953,-500.0,0.00029996,2]
[319716257,1710941615978,-500.0,0.00029996,2]
[319716258,1710941616006,-500.0,0.00029996,2]
[319716259,1710941616033,-500.0,0.00029996,2]
[319716260,1710941616060,-500.0,0.00029996,2]
[319716261,1710941616086,-500.0,0.00029996,2]
[319716262,1710941616112,-500.0,0.00029996,2]
[319716263,1710941616139,-500.0,0.00029996,2]
[319716264,1710941616166,-500.0,0.00029996,2]
[319716265,1710941616193,-500.0,0.00029996,2]
[319716266,1710941616219,-500.0,0.00029996,2]
[319716267,1710941927996,-685.20411728,0.00027894,2]
[319716268,1710941928021,-525.36827682,0.00027894,2]
[319716269,1710941928047,-239.17752042,0.00027896,2]
[319716270,1710941928073,-166.705692,0.00028928,2]
[319716271,1710941928100,-1000.0,0.00029897,2]
[319716272,1710941928127,-2592.0,0.00029996,2]
[319716273,1710941928153,-597.80075257,0.0003,2]
[319716274,1710941928180,-4310.47877657,0.0003,4]
[319716275,1710941928219,154.87609912,0.00027893,2]
[319716294,1710942563197,-154.87609912,0.00025615,2]
[319716295,1710942563219,-177.0,0.00025616,2]
[319716296,1710942563239,-78.31503075,0.0002589,2]
[319716374,1710942632119,-7022.77205188,0.00027793,2]
[319716375,1710942632128,-1728.0,0.00027893,2]
[319716376,1710942632137,-159.45168028,0.00027896,2]
[319716377,1710942632146,-166.705692,0.00028043,2]
[319716378,1710942632155,-170.941398,0.0002893,2]
[319716379,1710942632164,-218.66384,0.00029042,2]
[319716380,1710942632173,-402.464081,0.00029789,2]
[319716381,1710942632183,-201.2320405,0.00029978,2]
[319716382,1710942632192,-203.19977342,0.00030131,4]
[319716384,1710942632202,-10562.75305905,0.00030132,5]
[319716393,1710942632331,-4310.47877657,0.00030133,4]
[319716395,1710942632341,-1072.32623552,0.00030133,4]
[319716397,1710942632353,-696.8245207,0.00030134,4]
[319716398,1710942632362,-999.10500974,0.00030134,4]
[319716400,1710942632372,-300.0,0.00030135,2]
[319716401,1710942632381,-1000.0,0.00030135,3]
[319716402,1710942632391,-317.54296762,0.00030136,2]
[319716403,1710942632402,-500.0,0.00030136,2]
[319716404,1710942632414,-500.0,0.00030136,2]
[319716405,1710942632424,-500.0,0.00030136,2]
[319716406,1710942632435,-3300.72,0.00030136,2]
[319716407,1710942632445,-500.0,0.00030136,2]
[319716408,1710942632454,-881.54,0.00030136,2]
[319716409,1710942632465,-701.8,0.00030136,2]
[319716410,1710942632475,-500.0,0.00030136,2]
[319716411,1710942632485,-500.0,0.00030136,2]
[319716412,1710942632497,-365.37212129,0.00030136,2]
[319716413,1710942632507,-632.81,0.00030136,2]
[319716414,1710942632516,-2179.15,0.00030136,2]
[319716415,1710942632525,-1092.2,0.00030136,2]
[319716416,1710942632534,-151.0,0.00030136,2]
[319716417,1710942632543,-200.0,0.00030136,2]
[319716418,1710942632552,-806.15,0.00030136,2]
[319716419,1710942632561,-500.0,0.00030136,2]
[319716420,1710942632571,-500.0,0.00030136,2]
[319716421,1710942632581,-200.0,0.00030136,2]
[319716422,1710942632591,-500.0,0.00030136,2]
[319716423,1710942632600,-500.0,0.00030136,2]
[319716424,1710942632609,-500.0,0.00030136,2]
[319716425,1710942632618,-500.0,0.00030136,2]
[319716426,1710942632627,-500.0,0.00030136,2]
[319716427,1710942632636,-500.0,0.00030136,2]
[319716428,1710942632645,-500.0,0.00030136,2]
[319716429,1710942632654,-500.0,0.00030136,2]
[319716430,1710942632663,-783.6,0.00030136,2]
[319716431,1710942632672,-500.0,0.00030136,2]
[319716432,1710942632682,-500.0,0.00030136,2]
[319716433,1710942632692,-876.66,0.00030136,2]
[319716434,1710942632702,-876.66,0.00030136,2]
[319716435,1710942632711,-876.66,0.00030136,2]
[319716436,1710942632720,-876.66,0.00030136,2]
[319716437,1710942632729,-876.66,0.00030136,2]
[319716438,1710942632741,-876.66,0.00030136,2]
[319716439,1710942632750,-500.0,0.00030136,2]
[319716440,1710942632759,-2051.97,0.00030136,2]
[319716441,1710942632769,-583.92,0.00030136,2]
[319716442,1710942632779,-516.15,0.00030136,2]
[319716443,1710942632788,-500.0,0.00030136,2]
[319716444,1710942632798,-500.0,0.00030136,2]
[319716445,1710942632807,-500.0,0.00030136,2]
[319716446,1710942632816,-500.0,0.00030136,2]
[319716447,1710942632825,-500.0,0.00030136,2]
[319716448,1710942632834,-500.0,0.00030136,2]
[319716449,1710942632843,-2850.75,0.00030136,2]
[319716450,1710942632852,-866.31,0.00030136,2]
[319716451,1710942632861,-154.84515485,0.00030136,2]
[319716452,1710942632871,-730.37,0.00030136,2]
[319716453,1710942632880,-500.0,0.00030136,2]
[319716454,1710942632889,-3903.07,0.00030136,2]
[319716455,1710942632898,-500.0,0.00030136,2]
[319716456,1710942632907,-970.78,0.00030136,2]
[319716457,1710942632917,-500.0,0.00030136,2]
[319716458,1710942632926,-508.83594071,0.00030136,2]
[319716459,1710942632936,-871.04,0.00030136,2]
[319716460,1710942632945,-26432.62,0.00030136,2]
[319716461,1710942632954,-2952.83,0.00030136,2]
[319716462,1710942632964,-1524.2,0.00030136,2]
[319716463,1710942632973,-500.0,0.00030136,2]
[319716464,1710942632982,-500.0,0.00030136,2]
[319716465,1710942632994,-904.64,0.00030136,2]
[319716466,1710942633004,-799.20671963,0.00030136,2]
[319716467,1710942633017,-105.43328037,0.00030136,2]
[319716468,1710942633026,-904.64,0.00030136,2]
[319716469,1710942633035,-904.64,0.00030136,2]
[319716470,1710942633044,-904.64,0.00030136,2]
[319716471,1710942633054,-904.64,0.00030136,2]
[319716472,1710942633063,-520.81521444,0.00030136,2]
[319716473,1710942633072,-762.0,0.00030136,2]
[319716474,1710942633081,-500.0,0.00030136,2]
[319716475,1710942633090,-1402.63,0.00030136,2]
[319716476,1710942633099,-710.91,0.00030136,2]
[319716477,1710942633107,-500.0,0.00030136,2]
[319716478,1710942633116,-500.0,0.00030136,2]
[319716479,1710942633126,-500.0,0.00030136,2]
[319716480,1710942633135,-500.0,0.00030136,2]
[319716481,1710942633144,-500.0,0.00030136,2]
[319716482,1710942633153,-500.0,0.00030136,2]
[319716483,1710942633162,-2268.43,0.00030136,2]
[319716484,1710942633171,-456.70675139,0.00030136,2]
[319716485,1710942633180,-1187.1147538,0.00030136,2]
[319716486,1710942635565,-162.5952462,0.00030136,2]
[319716487,1710942635574,-500.0,0.00030136,2]
[319716488,1710942635583,-500.0,0.00030136,2]
[319716489,1710942635592,-500.0,0.00030136,2]
[319716490,1710942635601,-500.0,0.00030136,2]
[319716491,1710942635611,-500.0,0.00030136,2]
[319716492,1710942635619,-500.0,0.00030136,2]
[319716493,1710942635629,-1018.24,0.00030136,2]
[319716494,1710942635638,-500.0,0.00030136,2]
[319716495,1710942635647,-2029.73,0.00030136,2]
[319716496,1710942635656,-501.70592551,0.00030136,2]
[319716497,1710942635665,-500.0,0.00030136,2]
[319716498,1710942635674,-534.79,0.00030136,2]
[319716499,1710942635683,-500.0,0.00030136,2]
[319716500,1710942635693,-500.0,0.00030136,2]
[319716501,1710942635703,-642.86,0.00030136,2]
[319716502,1710942635712,-500.0,0.00030136,2]
[319716503,1710942635722,-500.0,0.00030136,2]
[319716504,1710942635732,-500.0,0.00030136,2]
[319716505,1710942635743,-500.0,0.00030136,2]
[319716506,1710942635753,-2530.84382875,0.00030136,2]
[319716539,1710942638083,-500.0,0.00030132,2]
[319716542,1710942638093,-481.20749993,0.00030132,2]
[319716779,1710942640190,-18.79250007,0.00030132,2]
[319716781,1710942640200,-500.0,0.00030132,2]
[319716783,1710942640210,-500.0,0.00030132,2]
[319716785,1710942640220,-500.0,0.00030132,2]
[319716787,1710942640229,-500.0,0.00030132,2]
[319716789,1710942640239,-500.0,0.00030132,2]
[319716791,1710942640252,-500.0,0.00030132,2]
[319716793,1710942640262,-500.0,0.00030132,2]
[319716795,1710942640272,-500.0,0.00030132,2]
[319716797,1710942640281,-500.0,0.00030132,2]
[319716799,1710942640290,-500.0,0.00030132,2]
[319716801,1710942640299,-500.0,0.00030132,2]
[319716803,1710942640309,-500.0,0.00030132,2]
[319716806,1710942640320,-500.0,0.00030132,2]
[319716807,1710942640329,-500.0,0.00030132,2]
[319716809,1710942640339,-500.0,0.00030132,2]
[319716811,1710942640349,-500.0,0.00030132,2]
[319716813,1710942640359,-500.0,0.00030132,2]
[319716815,1710942640368,-500.0,0.00030132,2]
[319716817,1710942640377,-500.0,0.00030132,2]
[319716819,1710942640386,-500.0,0.00030132,2]
[319716821,1710942640395,-500.0,0.00030132,2]
[319716823,1710942640404,-500.0,0.00030132,2]
[319716825,1710942640414,-500.0,0.00030132,2]
[319716827,1710942640424,-500.0,0.00030132,2]
[319716829,1710942640434,-500.0,0.00030132,2]
[319716831,1710942640443,-500.0,0.00030132,2]
[319716834,1710942640453,-500.0,0.00030132,2]
[319716836,1710942640462,-500.0,0.00030132,2]
[319716837,1710942640472,-500.0,0.00030132,2]
[319716840,1710942640482,-500.0,0.00030132,2]
[319716841,1710942640494,-500.0,0.00030132,2]
[319716844,1710942640504,-500.0,0.00030132,2]
[319716845,1710942640513,-500.0,0.00030132,2]
[319716848,1710942640523,-500.0,0.00030132,2]
[319716850,1710942640532,-500.0,0.00030132,2]
[319716851,1710942640541,-500.0,0.00030132,2]
[319716853,1710942640550,-500.0,0.00030132,2]
[319716856,1710942640560,-500.0,0.00030132,2]
[319716858,1710942640570,-500.0,0.00030132,2]
[319716859,1710942640579,-500.0,0.00030132,2]
[319716861,1710942640588,-500.0,0.00030132,2]
[319716863,1710942640597,-500.0,0.00030132,2]
[319716865,1710942640607,-500.0,0.00030132,2]
[319716867,1710942640616,-500.0,0.00030132,2]
[319716869,1710942640625,-500.0,0.00030132,2]
[319716871,1710942640634,-500.0,0.00030132,2]
[319716873,1710942640643,-500.0,0.00030132,2]
[319716875,1710942640653,-500.0,0.00030132,2]
[319716878,1710942640665,-500.0,0.00030132,2]
[319716880,1710942640674,-500.0,0.00030132,2]
[319716881,1710942640684,-500.0,0.00030132,2]
[319716883,1710942640693,-500.0,0.00030132,2]
[319716886,1710942640703,-420.54617125,0.00030136,2]
[319716888,1710942640711,-500.0,0.00030136,2]
[319716889,1710942640721,-3576.09,0.00030136,2]
[319716892,1710942640730,-500.0,0.00030136,2]
[319716894,1710942640739,-500.0,0.00030136,2]
[319716895,1710942640752,-304.57132868,0.00030136,2]
[319716898,1710942640765,-195.42867132,0.00030136,2]
[319716900,1710942640774,-500.0,0.00030136,2]
[319716902,1710942640783,-343.57132068,0.00030136,2]
[319717160,1710942643226,-3496.52491511,0.00030131,4]
[319717162,1710942643236,-156.42867932,0.00030136,2]
[319717164,1710942643247,-500.0,0.00030136,2]
[319717166,1710942643256,-500.0,0.00030136,2]
[319717168,1710942643265,-500.0,0.00030136,2]
[319717170,1710942643274,-500.0,0.00030136,2]
[319717172,1710942643283,-500.0,0.00030136,2]
[319717174,1710942643292,-500.0,0.00030136,2]
[319717176,1710942643301,-369.89707908,0.00030136,2]
[319717178,1710942643310,-3690.17,0.00030136,2]
[319717180,1710942643320,-3193.67018118,0.00030136,2]
[319717183,1710942643332,-5189.95981882,0.00030136,2]
[319717184,1710942643342,-500.0,0.00030136,2]
[319717186,1710942643351,-500.0,0.00030136,2]
[319717188,1710942643362,-500.0,0.00030136,2]
[319717190,1710942643371,-500.0,0.00030136,2]
[319717192,1710942643380,-500.0,0.00030136,2]
[319717194,1710942643389,-1070.86,0.00030136,2]
[319717197,1710942643398,-500.0,0.00030136,2]
[319717198,1710942643408,-2149.67,0.00030136,2]
[319717201,1710942643417,-500.0,0.00030136,2]
[319717203,1710942643426,-2014.35,0.00030136,2]
[319717205,1710942643435,-582.38,0.00030136,2]
[319717207,1710942643445,-888.57,0.00030136,2]
[319717209,1710942643454,-500.0,0.00030136,2]
[319717211,1710942643463,-500.0,0.00030136,2]
[319717212,1710942643472,-500.0,0.00030136,2]
[319717214,1710942643481,-500.0,0.00030136,2]
[319717216,1710942643490,-500.0,0.00030136,2]
[319717217,1710942643501,-500.0,0.00030136,2]
[319717219,1710942643510,-500.0,0.00030136,2]
[319717221,1710942643519,-500.0,0.00030136,2]
[319717223,1710942643529,-500.0,0.00030136,2]
[319717225,1710942643537,-500.0,0.00030136,2]
[319717227,1710942643546,-500.0,0.00030136,2]
[319717230,1710942643556,-500.0,0.00030136,2]
[319717231,1710942643565,-1399.34,0.00030136,2]
[319717233,1710942643575,-500.0,0.00030136,2]
[319717235,1710942643584,-76.19144174,0.00030136,2]
[319717388,1710942646191,-160.29039374,0.00024107,2]
[319717389,1710942646201,-423.80855826,0.00030136,2]
[319717390,1710942646211,-500.0,0.00030136,2]
[319717391,1710942646220,-500.0,0.00030136,2]